fUSD/lending_fUSD_20251102
["ID","MTS","AMOUNT","RATE_DAILY","PERIOD"]
[392865647,1762084231752,-150.0,0.00014703,2]
[392865648,1762084231762,-347.86475281,0.00014713,2]
[392865650,1762084231772,-150.0,0.00014726,2]
[392865651,1762084231781,-150.0,0.00014726,2]
[392865652,1762084231791,-150.0,0.00014743,2]
[392865653,1762084231801,-150.0,0.00014756,2]
[392865654,1762084231811,-150.0,0.00014772,2]
[392865656,1762084231820,-498.69606819,0.00014773,2]
[392865660,1762084231930,-690.93393181,0.00014773,2]
[392865661,1762084231940,-150.0,0.00014784,2]
[392865662,1762084231949,-642.0,0.00014785,2]
[392865663,1762084231958,-150.0,0.00014791,2]
[392865664,1762084231968,-150.0,0.00014791,2]
[392865665,1762084231978,-150.0,0.00014799,2]
[392865666,1762084231987,-1200.0,0.00014799,2]
[392865667,1762084231997,-1586.0446,0.000148,2]
[392865668,1762084232006,-347.86475281,0.000148,2]
[392865669,1762084232016,-235.57259234,0.00014821,2]
[392865670,1762084232025,-300.0,0.00014823,2]
[392865671,1762084232035,-300.0,0.00014823,2]
[392865672,1762084232044,-1965.66731215,0.00014824,2]
[392865673,1762084232054,-150.0,0.00014824,2]
[392865674,1762084232064,-168.0,0.00014834,2]
[392865675,1762084232073,-300.35,0.00014842,2]
[392865676,1762084232083,-150.0,0.00014844,2]
[392865677,1762084232092,-184.79668,0.0001485,2]
[392865678,1762084232102,-202.41302,0.0001485,2]
[392865679,1762084232111,-150.0,0.00014856,2]
[392865680,1762084232120,-150.0,0.00014856,2]
[392865681,1762084232130,-150.0,0.00014856,2]
[392865682,1762084232140,-150.0,0.00014865,2]
[392865683,1762084232150,-150.0,0.00014871,2]
[392865684,1762084232159,-168.0,0.00014872,2]
[392865685,1762084232169,-500.0,0.00014877,2]
[392865686,1762084232178,-38501.93438802,0.00014888,2]
[392865687,1762084232190,-56642.51023341,0.00014888,2]
[392865688,1762084232212,-3035.71581945,0.00014888,2]
[392865689,1762084232242,-8927.1100395,0.00014888,2]
[392865702,1762084237547,-14577.37635768,0.00014888,2]
[392865703,1762084237559,-2029.95548901,0.00014888,2]
[392865704,1762084237704,-3691.39097615,0.00014888,2]
[392865706,1762084237715,-277.27327459,0.00014888,2]
[392865707,1762084237727,-39218.94316479,0.00014888,2]
[392865712,1762084239433,-9002.52611933,0.00014888,2]
[392865713,1762084239447,-596.06939492,0.00014888,2]
[392865714,1762084239487,-476.08668257,0.00014888,2]
[392865715,1762084239540,-277.35679052,0.00014888,2]
[392865716,1762084239551,-3904.36108811,0.00014888,2]
[392865717,1762084239702,-3239.64536153,0.00014888,2]
[392865718,1762084239714,-1033369.38413542,0.00014888,2]
[392865719,1762084239725,-500.0,0.00014899,2]
[392865720,1762084239736,-302.24097774,0.00014899,2]
[392865721,1762084239746,-158.77612218,0.00014899,2]
[392865722,1762084239757,-500.0,0.00014899,2]
[392865723,1762084239768,-500.0,0.00014899,2]
[392865724,1762084239778,-500.0,0.00014899,2]
[392865725,1762084239789,-500.0,0.00014899,2]
[392865726,1762084239799,-500.0,0.00014899,2]
[392865727,1762084239810,-500.0,0.00014899,2]
[392865728,1762084239820,-500.0,0.00014899,2]
[392865729,1762084239831,-500.0,0.00014899,2]
[392865730,1762084239840,-500.0,0.00014899,2]
[392865731,1762084239849,-500.0,0.00014899,2]
[392865732,1762084239859,-330.76884628,0.00014899,2]
[392865733,1762084239870,-169.23115372,0.00014899,2]
[392865734,1762084239879,-500.0,0.00014899,2]
[392865735,1762084239889,-302.06412147,0.00014899,2]
[392865736,1762084239915,-197.93587853,0.00014899,2]
[392865737,1762084239926,-52.06412147,0.00014899,2]
[392865750,1762084245531,-319.64999849,0.00014899,2]
[392865754,1762084271443,93697.3121639,0.00016,30]
[392865758,1762084315862,1500.0,0.00014077,2]
[392865777,1762084340501,269.8563,0.00014572,2]
[392865800,1762084438849,165.99306756,0.00016,30]
[392865802,1762084485924,893.21759391,0.00014582,2]
[392865807,1762084522428,3830.13,0.00014045,2]
[392865817,1762084609882,1000.0,0.00013974,2]
[392865835,1762084640381,2889.49,0.00013961,2]
[392865856,1762084748817,1387.17240609,0.00013942,2]
[392865857,1762084748841,9673.77759391,0.00013942,2]
[392865859,1762084753257,326.23240609,0.00014636,2]
[392865860,1762084753282,456.76759391,0.00014636,2]
[392865861,1762084754679,-221.66766337,0.00014722,2]
[392865862,1762084754702,-240.95405765,0.00014769,2]
[392865863,1762084754726,-300.0,0.00014772,2]
[392865864,1762084754750,-195.0,0.00014778,2]
[392865865,1762084754774,-184.79669,0.0001479,2]
[392865866,1762084754796,-223.01596022,0.00014797,2]
[392865867,1762084754819,-184.79669,0.000148,2]
[392865868,1762084754840,-184.79669,0.0001485,2]
[392865869,1762084754865,-1200.0,0.00014887,2]
[392865870,1762084754887,-300.0,0.00014887,2]
[392865871,1762084754911,-150.0,0.00014887,2]
[392865872,1762084754935,-200.0,0.00014888,2]
[392865873,1762084754960,-14476.6347763,0.00014888,2]
[392865874,1762084754985,-321.64507291,0.00014894,2]
[392865875,1762084755010,-150.0,0.00014898,2]
[392865876,1762084755038,-128.28588004,0.00014899,2]
[392865877,1762084755063,-500.0,0.00014899,2]
[392865878,1762084755088,-500.0,0.00014899,2]
[392865879,1762084755113,-500.0,0.00014899,2]
[392865880,1762084755136,-500.0,0.00014899,2]
[392865881,1762084755159,-503.66961955,0.00014899,2]
[392865882,1762084755185,-500.0,0.00014899,2]
[392865883,1762084755212,-500.0,0.00014899,2]
[392865884,1762084755235,-500.0,0.00014899,2]
[392865885,1762084755259,-500.0,0.00014899,2]
[392865886,1762084755284,-500.0,0.00014899,2]
[392865887,1762084755308,-500.0,0.00014899,2]
[392865888,1762084755332,-500.0,0.00014899,2]
[392865889,1762084755356,-500.0,0.00014899,2]
[392865890,1762084755391,-350.0,0.00014899,2]
[392865891,1762084755419,-500.0,0.00014899,2]
[392865892,1762084755445,-500.0,0.00014899,2]
[392865893,1762084755473,-500.0,0.00014899,2]
[392865894,1762084755501,-500.0,0.00014899,2]
[392865895,1762084755527,-1310.623,0.00014899,2]
[392865896,1762084755553,-180.185,0.00014899,2]
[392865897,1762084755577,-158.77612218,0.00014899,2]
[392865898,1762084755602,-500.0,0.00014899,2]
[392865899,1762084755629,-500.0,0.00014899,2]
[392865900,1762084755655,-500.0,0.00014899,2]
[392865901,1762084755681,-500.0,0.00014899,2]
[392865902,1762084755705,-500.0,0.00014899,2]
[392865903,1762084755734,-500.0,0.00014899,2]
[392865904,1762084755766,-500.0,0.00014899,2]
[392865905,1762084755794,-500.0,0.00014899,2]
[392865906,1762084755819,-500.0,0.00014899,2]
[392865907,1762084755843,-500.0,0.00014899,2]
[392865908,1762084755871,-500.0,0.00014899,2]
[392865909,1762084755896,-500.0,0.00014899,2]
[392865910,1762084755921,-500.0,0.00014899,2]
[392865911,1762084755948,-500.0,0.00014899,2]
[392865912,1762084755973,-500.0,0.00014899,2]
[392865913,1762084755998,-500.0,0.00014899,2]
[392865914,1762084756026,-500.0,0.00014899,2]
[392865915,1762084756050,-500.0,0.00014899,2]
[392865916,1762084756074,-500.0,0.00014899,2]
[392865917,1762084756100,-500.0,0.00014899,2]
[392865918,1762084756125,-500.0,0.00014899,2]
[392865919,1762084756150,-500.0,0.00014899,2]
[392865920,1762084756175,-500.0,0.00014899,2]
[392865921,1762084756198,-500.0,0.00014899,2]
[392865922,1762084756222,-500.0,0.00014899,2]
[392865923,1762084756246,-500.0,0.00014899,2]
[392865924,1762084756274,-500.0,0.00014899,2]
[392865925,1762084756298,-500.0,0.00014899,2]
[392865926,1762084756653,-351.93691081,0.00014899,2]
[392865927,1762084756679,-500.0,0.00014899,2]
[392865928,1762084756705,-500.0,0.00014899,2]
[392865929,1762084756731,-500.0,0.00014899,2]
[392865930,1762084756756,-500.0,0.00014899,2]
[392865931,1762084756783,-500.00000001,0.00014899,2]
[392865932,1762084756809,-500.0,0.00014899,2]
[392865933,1762084756838,-500.0,0.00014899,2]
[392865934,1762084756864,-1225.27,0.00014899,2]
[392865935,1762084756889,-500.0,0.00014899,2]
[392865936,1762084756915,-500.0,0.00014899,2]
[392865937,1762084756940,-374.1884555,0.00014899,2]
[392865938,1762084756967,-500.0,0.00014899,2]
[392865939,1762084756993,-500.0,0.00014899,2]
[392865940,1762084757018,-139160.483,0.000149,2]
[392865941,1762084757041,-183.3804621,0.000149,2]
[392865942,1762084757065,-178.78552866,0.000149,2]
[392865943,1762084757089,-196.68190857,0.000149,2]
[392865944,1762084757113,-150.0,0.00014905,2]
[392865945,1762084757137,-457.84109329,0.00014907,2]
[392865946,1762084757160,-301.42246675,0.00014907,2]
[392865947,1762084757181,-3064.6104979,0.00014908,2]
[392865948,1762084757209,-22398.3175131,0.00014908,2]
[392865949,1762084757238,-7071.3308133,0.00014908,2]
[392865950,1762084757261,-1734.1636116,0.00014908,2]
[392865951,1762084757285,-184.79669,0.0001491,2]
[392865952,1762084757308,-150.0,0.00014915,2]
[392865953,1762084757332,-150.0,0.00014921,2]
[392865954,1762084757355,-150.0,0.00014921,2]
[392865955,1762084757377,-202.41302,0.0001494,2]
[392865956,1762084757401,-150.0,0.00014946,2]
[392865957,1762084757425,-477.45087779,0.00014958,2]
[392865958,1762084757450,-500.0,0.00014973,2]
[392865959,1762084757475,-500.0,0.00014973,2]
[392865960,1762084757500,-500.0,0.00014973,2]
[392865961,1762084757524,-500.0,0.00014973,2]
[392865962,1762084757546,-500.0,0.00014973,2]
[392865963,1762084757571,-500.0,0.00014973,2]
[392865964,1762084757599,-500.0,0.00014973,2]
[392865965,1762084757625,-500.0,0.00014973,2]
[392865966,1762084757649,-500.0,0.00014973,2]
[392865967,1762084757673,-500.0,0.00014973,2]
[392865968,1762084757700,-500.0,0.00014973,2]
[392865969,1762084757727,-500.0,0.00014973,2]
[392865970,1762084757750,-184.79669,0.0001498,2]
[392865971,1762084757775,-2140.0,0.00014984,2]
[392865972,1762084757803,-150.0,0.00014986,2]
[392865973,1762084757828,-150.0,0.00014986,2]
[392865974,1762084757851,-150.0,0.00014986,2]
[392865975,1762084757880,-184.15019715,0.00014986,2]
[392865976,1762084757906,-150.0,0.00014986,2]
[392865977,1762084757931,-150.0,0.00014986,2]
[392865978,1762084757957,-150.0,0.00014986,2]
[392865979,1762084757981,-161.36635557,0.00014986,2]
[392865980,1762084758009,-150.0,0.00014986,2]
[392865981,1762084758033,-496.47127164,0.00014991,2]
[392865982,1762084758056,-150.0,0.00014999,2]
[392865983,1762084758080,-500.0,0.00014999,2]
[392865984,1762084758104,-150.0,0.00014999,2]
[392865985,1762084758128,-500.0,0.00014999,2]
[392865986,1762084758152,-258.58360195,0.00014999,2]
[392865987,1762084758175,-150.0,0.00014999,2]
[392865988,1762084758198,-150.0,0.00014999,2]
[392865989,1762084758225,-152.08698658,0.00014999,2]
[392865990,1762084758248,-500.0,0.00014999,2]
[392865991,1762084758272,-500.0,0.00014999,2]
[392865992,1762084758296,-761.0,0.00014999,2]
[392865993,1762084758319,-151.79738348,0.00014999,2]
[392865994,1762084758342,-150.0,0.00014999,2]
[392865995,1762084758366,-150.0,0.00014999,2]
[392865996,1762084758390,-150.0,0.00014999,2]
[392865997,1762084758414,-500.0,0.00014999,2]
[392865998,1762084758441,-500.0,0.00014999,2]
[392865999,1762084758466,-200.0,0.00014999,2]
[392866000,1762084758489,-299.99999984,0.00014999,2]
[392866001,1762084758513,-226.1456052,0.00014999,2]
[392866002,1762084758539,-168.33227244,0.00014999,2]
[392866003,1762084758564,-500.0,0.00014999,2]
[392866004,1762084758588,-500.0,0.00014999,2]
[392866005,1762084758612,-495537.34956455,0.00015,2]
[392866014,1762084813334,150.0,0.00014617,2]
[392866016,1762084813474,150.0,0.00014617,120]
[392866044,1762084932463,1349.36,0.00014131,2]
[392866057,1762084970150,893.21759391,0.00014605,2]
[392866064,1762085056600,7757.43240609,0.00014118,2]
[392866065,1762085056624,2094.11759391,0.00014118,2]
[392866071,1762085114293,150.0,0.00013488,2]
[392866072,1762085114359,150.0,0.00014237,2]
[392866073,1762085114498,179.92837473,0.00013488,2]
[392866074,1762085120252,150.0,0.00013488,2]
[392866075,1762085120299,150.0,0.00013513,2]
[392866076,1762085120367,150.0,0.00013538,2]
[392866077,1762085120442,150.0,0.00013564,2]
[392866078,1762085120515,150.0,0.00013589,2]
[392866079,1762085120581,150.0,0.00013615,2]
[392866080,1762085120661,150.0,0.0001364,2]
[392866081,1762085120723,150.0,0.00013665,2]
[392866082,1762085120808,150.0,0.00013691,2]
[392866083,1762085120878,150.0,0.00013716,2]
[392866084,1762085121197,150.0,0.00013742,2]
[392866085,1762085121246,150.0,0.00013767,2]
[392866086,1762085121317,150.0,0.00013792,2]
[392866087,1762085121356,150.0,0.00013818,2]
[392866088,1762085121401,150.0,0.00013843,2]
[392866089,1762085121439,150.0,0.00013869,2]
[392866090,1762085121478,150.0,0.00013894,2]
[392866091,1762085121525,150.0,0.00013919,2]
[392866092,1762085121564,150.0,0.00013945,2]
[392866093,1762085121607,150.0,0.0001397,2]
[392866094,1762085121644,150.0,0.00013996,2]
[392866095,1762085121715,150.0,0.00014021,2]
[392866096,1762085121790,150.0,0.00014046,2]
[392866097,1762085121863,150.0,0.00014072,2]
[392866098,1762085121935,150.0,0.00014097,2]
[392866099,1762085122013,150.0,0.00014123,2]
[392866100,1762085122072,150.0,0.00014148,2]
[392866101,1762085122147,150.0,0.00014173,2]
[392866102,1762085122220,150.0,0.00014199,2]
[392866103,1762085122320,150.0,0.00014224,2]
[392866104,1762085122361,150.0,0.0001425,2]
[392866105,1762085122925,150.0,0.00014275,2]
[392866106,1762085122984,150.0,0.000143,2]
[392866107,1762085123035,150.0,0.00014326,2]
[392866108,1762085123082,150.0,0.00014351,2]
[392866109,1762085123151,150.0,0.00014377,2]
[392866110,1762085123211,150.0,0.00014427,2]
[392866111,1762085123289,150.0,0.00014453,2]
[392866112,1762085123327,150.0,0.00014402,2]
[392866114,1762085123372,150.0,0.00014478,2]
[392866116,1762085123505,150.0,0.00014504,2]
[392866117,1762085123546,150.0,0.00014529,2]
[392866118,1762085123582,150.0,0.00014554,2]
[392866119,1762085123623,150.0,0.0001458,2]
[392866120,1762085123672,150.0,0.00014605,2]
[392866121,1762085123717,150.0,0.00014631,2]
[392866122,1762085123755,150.0,0.00014656,2]
[392866124,1762085125528,150.0,0.00013488,2]
[392866125,1762085125580,150.0,0.00013567,2]
[392866126,1762085125654,75.96403136,0.00013645,2]
[392866127,1762085125676,74.03596864,0.00013645,2]
[392866128,1762085125716,150.0,0.00013724,2]
[392866129,1762085125786,150.0,0.00013803,2]
[392866130,1762085125857,150.0,0.00013882,2]
[392866131,1762085125937,150.0,0.00013961,2]
[392866132,1762085126039,150.0,0.0001404,2]
[392866133,1762085126111,150.0,0.00014119,2]
[392866134,1762085126164,150.0,0.00014198,2]
[392866135,1762085126227,150.0,0.00014276,2]
[392866136,1762085126358,150.0,0.00014355,2]
[392866137,1762085126397,150.0,0.00014434,2]
[392866138,1762085126432,150.0,0.00014513,2]
[392866139,1762085126495,150.0,0.00014592,2]
[392866141,1762085126987,150.0,0.00013488,2]
[392866142,1762085127325,150.0,0.00014237,2]
[392866144,1762085134895,153.77734455,0.00013488,2]
[392866145,1762085134957,150.0,0.00013488,2]
[392866146,1762085135083,168.57676944,0.00013488,2]
[392866147,1762085135170,164.50739343,0.00013488,2]
[392866148,1762085135244,150.00000001,0.00013488,2]
[392866149,1762085142076,150.0,0.00013488,2]
[392866150,1762085142188,150.0,0.00013488,2]
[392866151,1762085142256,150.0,0.00013638,2]
[392866152,1762085142310,150.0,0.00013787,2]
[392866153,1762085142384,150.0,0.00013937,2]
[392866154,1762085142527,150.0,0.00014087,2]
[392866155,1762085142577,150.0,0.00014237,2]
[392866156,1762085142633,150.0,0.00014387,2]
[392866157,1762085142938,150.0,0.00014537,2]
[392866166,1762085250891,2254.14,0.0001387,2]
[392866179,1762085355985,221.66766337,0.00014622,2]
[392866180,1762085366944,1000.0,0.00013699,2]
[392866196,1762085424466,-300.0,0.0001467,2]
[392866197,1762085424501,-300.0,0.0001467,2]
[392866198,1762085424531,-1200.0,0.0001467,2]
[392866243,1762085433560,-150.0,0.00014671,2]
[392866244,1762085433569,-150.0,0.00014671,2]
[392866245,1762085433579,-150.0,0.00014671,2]
[392866246,1762085433588,-150.0,0.00014671,2]
[392866247,1762085433597,-150.0,0.00014671,2]
[392866248,1762085433606,-150.0,0.00014671,2]
[392866249,1762085433616,-150.0,0.00014671,2]
[392866250,1762085433625,-150.0,0.00014671,2]
[392866251,1762085433634,-150.0,0.00014671,2]
[392866252,1762085433643,-150.0,0.00014671,2]
[392866253,1762085433653,-150.0,0.00014671,2]
[392866254,1762085433662,-150.0,0.00014671,2]
[392866255,1762085433671,-150.0,0.00014671,2]
[392866256,1762085433680,-150.0,0.00014671,2]
[392866257,1762085433690,-150.0,0.00014671,2]
[392866258,1762085433699,-150.0,0.00014671,2]
[392866259,1762085433709,-150.0,0.00014671,2]
[392866260,1762085433719,-150.0,0.00014671,2]
[392866261,1762085433729,-195.0,0.00014676,2]
[392866262,1762085433739,-150.0,0.00014681,2]
[392866263,1762085433748,-150.0,0.00014687,2]
[392866264,1762085433757,-150.0,0.00014707,2]
[392866265,1762085433768,-150.0,0.00014732,2]
[392866266,1762085433777,-150.0,0.0001475,2]
[392866267,1762085433787,-150.0,0.00014758,2]
[392866268,1762085433797,-150.0,0.00014783,2]
[392866269,1762085433808,-205.0,0.00014797,2]
[392866270,1762085433817,-14.94264647,0.00014798,2]
[392866271,1762085435655,-135.05735353,0.00014798,2]
[392866272,1762085435665,-320.4887653,0.00014799,2]
[392866273,1762085435674,-210.99572673,0.00014799,2]
[392866274,1762085435683,-152.39801732,0.00014799,2]
[392866275,1762085435693,-500.0,0.00014799,2]
[392866276,1762085435702,-500.0,0.00014799,2]
[392866277,1762085435712,-500.0,0.00014799,2]
[392866278,1762085435721,-500.0,0.00014799,2]
[392866279,1762085435730,-500.0,0.00014799,2]
[392866280,1762085435740,-500.0,0.00014799,2]
[392866281,1762085435749,-180.74399818,0.00014799,2]
[392866282,1762085435760,-319.25600182,0.00014799,2]
[392866283,1762085435770,-103.26976342,0.00014799,2]
[392866284,1762085435792,-396.73023658,0.00014799,2]
[392866285,1762085435802,-500.0,0.00014799,2]
[392866286,1762085435810,-500.0,0.00014799,2]
[392866287,1762085435820,-500.0,0.00014799,2]
[392866288,1762085435829,-500.0,0.00014799,2]
[392866289,1762085435839,-500.0,0.00014799,2]
[392866290,1762085435848,-500.0,0.00014799,2]
[392866291,1762085435858,-500.0,0.00014799,2]
[392866292,1762085435867,-500.0,0.00014799,2]
[392866293,1762085435877,-500.0,0.00014799,2]
[392866294,1762085435886,-500.0,0.00014799,2]
[392866295,1762085435895,-123.08110134,0.00014799,2]
[392866296,1762085435906,-376.91889866,0.00014799,2]
[392866297,1762085435916,-500.0,0.00014799,2]
[392866298,1762085435925,-500.0,0.00014799,2]
[392866299,1762085435934,-557.47266319,0.00014799,2]
[392866300,1762085435944,-500.0,0.00014799,2]
[392866301,1762085435952,-500.0,0.00014799,2]
[392866302,1762085435962,-500.0,0.00014799,2]
[392866303,1762085435971,-500.0,0.00014799,2]
[392866304,1762085435981,-500.0,0.00014799,2]
[392866305,1762085435990,-500.0,0.00014799,2]
[392866306,1762085435999,-650.0,0.00014799,2]
[392866307,1762085436009,-500.0,0.00014799,2]
[392866308,1762085436018,-500.0,0.00014799,2]
[392866310,1762085436028,-500.0,0.00014799,2]
[392866312,1762085436037,-1123.16,0.00014799,2]
[392866314,1762085436046,-264.50570858,0.00014799,2]
[392866316,1762085436056,-241.97021567,0.00014799,2]
[392866318,1762085436065,-280.31087344,0.00014799,2]
[392866320,1762085436074,-46488.20581707,0.000148,2]
[392866323,1762085436090,-2556.84213855,0.000148,2]
[392866325,1762085436110,-1280.82749217,0.000148,2]
[392866328,1762085436128,-333.13,0.000148,2]
[392866329,1762085436139,-2583.5170317,0.000148,2]
[392866335,1762085437647,-819.15399918,0.000148,2]
[392866362,1762085442665,-2538.41549487,0.000148,2]
[392866379,1762085442914,-159770.29312646,0.000148,2]
[392866380,1762085442923,-150.0,0.00014808,2]
[392866381,1762085442933,-150.0,0.00014829,2]
[392866382,1762085442942,-150.0,0.00014834,2]
[392866383,1762085442951,-150.0,0.00014836,2]
[392866384,1762085442961,-150.0,0.00014859,2]
[392866385,1762085442970,-783.0,0.0001488,2]
[392866386,1762085442979,-150.0,0.00014885,2]
[392866387,1762085442989,-170.43588212,0.00014899,2]
[392866388,1762085442998,-160.90697583,0.00014899,2]
[392866389,1762085443008,-163.48580066,0.00014899,2]
[392866390,1762085443017,-163.48580066,0.000149,2]
[392866393,1762085443031,-163.48580066,0.000149,2]
[392866395,1762085443040,-427.25193494,0.000149,2]
[392866397,1762085443050,-163.48580066,0.000149,2]
[392866399,1762085443059,-170.43588212,0.000149,2]
[392866401,1762085443069,-196.68190857,0.000149,2]
[392866403,1762085443079,-150.0,0.00014907,2]
[392866405,1762085443088,-150.0,0.0001491,2]
[392866407,1762085443097,-150.0,0.00014936,2]
[392866410,1762085443107,-783.0,0.00014947,2]
[392866413,1762085443120,-477.45087779,0.00014956,2]
[392866416,1762085443129,-150.0,0.00014961,2]
[392866418,1762085443138,-500.0,0.00014973,2]
[392866420,1762085443148,-429.73326592,0.00014973,2]
[392866422,1762085443158,-500.0,0.00014973,2]
[392866424,1762085443167,-500.0,0.00014973,2]
[392866426,1762085443176,-193.80463721,0.00014973,2]
[392866428,1762085443186,-500.0,0.00014973,2]
[392866430,1762085443196,-500.0,0.00014973,2]
[392866432,1762085443206,-500.0,0.00014973,2]
[392866434,1762085443217,-500.0,0.00014973,2]
[392866436,1762085443226,-475.34507741,0.00014973,2]
[392866438,1762085443237,-150.0,0.00014986,2]
[392866440,1762085443247,-150.0,0.00014986,2]
[392866442,1762085443256,-150.0,0.00014986,2]
[392866444,1762085443266,-262.06521572,0.00014986,2]
[392866446,1762085443276,-150.0,0.00014986,2]
[392866448,1762085443286,-190.42763745,0.00014986,2]
[392866450,1762085443296,-150.0,0.00014986,2]
[392866452,1762085443305,-656.89261312,0.00014991,2]
[392866454,1762085443315,-322.6107,0.00014991,2]
[392866456,1762085443325,-496.47127164,0.00014991,2]
[392866458,1762085443335,-248.71531821,0.00014991,2]
[392866460,1762085443344,-19910.72036513,0.00014999,2]
[392866462,1762085443353,-1985.583,0.00014999,2]
[392866464,1762085443363,-177.255,0.00014999,2]
[392866466,1762085443372,-161810.9667919,0.00014999,2]
[392866468,1762085443381,-3796.6546834,0.00014999,2]
[392866471,1762085443394,-500.0,0.00014999,2]
[392866473,1762085443404,-500.0,0.00014999,2]
[392866475,1762085443413,-729.0,0.00014999,2]
[392866477,1762085443423,-500.0,0.00014999,2]
[392866479,1762085443433,-500.0,0.00014999,2]
[392866481,1762085443442,-500.0,0.00014999,2]
[392866483,1762085443452,-500.0,0.00014999,2]
[392866485,1762085443461,-500.0,0.00014999,2]
[392866487,1762085443471,-500.0,0.00014999,2]
[392866489,1762085443480,-500.0,0.00014999,2]
[392866491,1762085443490,-500.0,0.00014999,2]
[392866493,1762085443499,-500.0,0.00014999,2]
[392866495,1762085443508,-500.0,0.00014999,2]
[392866497,1762085443518,-500.0,0.00014999,2]
[392866499,1762085443527,-500.0,0.00014999,2]
[392866501,1762085443537,-391.92661757,0.00014999,2]
[392866503,1762085443546,-187.6234059,0.00014999,2]
[392866505,1762085443556,-500.0,0.00014999,2]
[392866507,1762085443565,-150.0,0.00014999,2]
[392866509,1762085443575,-150.0,0.00014999,2]
[392866512,1762085443588,-150.0,0.00014999,2]
[392866514,1762085443597,-500.0,0.00014999,2]
[392866516,1762085443606,-500.0,0.00014999,2]
[392866518,1762085443616,-285.09815715,0.00014999,2]
[392866520,1762085443625,-357184.07232952,0.00015,2]
[392866528,1762085445682,-1011.3186007,0.00015,2]
[392866529,1762085445802,-1190.09160563,0.00015,2]
[392866530,1762085445840,-15983.49231062,0.00015,2]
[392866531,1762085445896,-276.3779223,0.00015,2]
[392866532,1762085446002,-741.56022423,0.00015,2]
[392866559,1762085467070,906.80701139,0.00013983,2]
[392866560,1762085477309,893.21759391,0.00014586,2]
[392866561,1762085541897,2949.36,0.00014126,2]
[392866562,1762085561264,-1000.0,0.000147,2]
[392866563,1762085563540,-1000.0,0.000147,2]
[392866564,1762085564819,-1000.0,0.000147,2]
[392866565,1762085566372,-1000.0,0.000147,2]
[392866566,1762085567539,-1000.0,0.000147,2]
[392866567,1762085568495,-1000.0,0.000147,2]
[392866568,1762085570906,-1000.0,0.000147,2]
[392866569,1762085572382,-1000.0,0.000147,2]
[392866572,1762085574028,-1000.0,0.000147,2]
[392866573,1762085575040,-1000.0,0.000147,2]
[392866576,1762085576272,-1000.0,0.000147,2]
[392866577,1762085577367,-1000.0,0.000147,2]
[392866578,1762085578543,-1000.0,0.000147,2]
[392866579,1762085579628,-1000.0,0.000147,2]
[392866580,1762085580669,-1000.0,0.000147,2]
[392866581,1762085581546,-1000.0,0.000147,2]
[392866582,1762085582558,-1000.0,0.000147,2]
[392866583,1762085583689,-1000.0,0.000147,2]
[392866584,1762085584678,-1000.0,0.000147,2]